bitfinex/quotes_BTCUSD_20240918
["timestamp","ask_amount","ask_price","bid_price","bid_amount"]
[1726694801601,1.44819477,60399.0,60398.0,0.0056412]
[1726694808112,1.33598294,60399.0,60398.0,0.0056412]
[1726694809527,0.24258994,60399.0,60398.0,0.0967412]
[1726694809739,0.2166072,60399.0,60398.0,0.0967412]
[1726694809949,0.2166072,60399.0,60398.0,0.11011095]
[1726694809950,0.5477382,60399.0,60398.0,0.11011095]
[1726694810171,0.34100518,60399.0,60398.0,0.11011095]
[1726694810377,0.165565,60399.0,60398.0,0.11011095]
[1726694811261,0.26501418,60399.0,60398.0,0.11011095]
[1726694811933,0.26601418,60399.0,60398.0,0.11411095]
[1726694812161,0.26501418,60399.0,60398.0,0.11011095]
[1726694812394,0.165565,60399.0,60398.0,0.11011095]
[1726694813689,0.166565,60399.0,60398.0,0.11411095]
[1726694814341,0.24111499,60399.0,60398.0,0.11411095]
[1726694814548,0.24011499,60399.0,60398.0,0.11011095]
[1726694814779,0.24111499,60399.0,60398.0,0.11411095]
[1726694815668,0.24110573,60399.0,60398.0,0.11411095]
[1726694815881,0.24110532,60399.0,60398.0,0.11411095]
[1726694816318,0.24110532,60399.0,60398.0,0.02301095]
[1726694816759,0.24010532,60399.0,60398.0,0.01901095]
[1726694817024,0.24110532,60399.0,60398.0,0.02301095]
[1726694817312,0.166565,60399.0,60398.0,0.02301095]
[1726694819657,0.05067725,60399.0,60398.0,0.02301095]
[1726694819879,0.001,60399.0,60398.0,0.61671495]
[1726694820137,0.001,60399.0,60398.0,0.94785095]
[1726694820399,0.000823,60400.0,60399.0,0.827827]
[1726694820939,0.000823,60400.0,60399.0,0.93797511]
[1726694822189,0.001823,60400.0,60399.0,0.94197511]
[1726694822437,0.001823,60400.0,60399.0,1.27310611]
[1726694824888,0.001823,60400.0,60399.0,0.94197511]
[1726694833949,0.001823,60400.0,60399.0,1.10502878]
[1726694834157,0.001823,60400.0,60399.0,1.43615978]
[1726694836552,0.001823,60400.0,60399.0,1.54837161]
[1726694836785,0.001823,60400.0,60399.0,1.72377161]
[1726694837232,0.001823,60400.0,60399.0,2.08807261]
[1726694837439,0.001823,60400.0,60399.0,2.09007261]
[1726694837665,0.001823,60400.0,60399.0,1.75894161]
[1726694838093,0.24805894,60407.0,60406.0,1.256022]
[1726694838313,0.24805894,60407.0,60406.0,1.36823383]
[1726694838558,0.24805894,60415.0,60414.0,0.496573]
[1726694838984,0.02597424,60416.0,60415.0,0.496564]
[1726694839208,0.000822,60418.0,60417.0,0.496548]
[1726694839422,0.000822,60418.0,60417.0,0.93979183]
[1726694840108,0.000822,60418.0,60417.0,0.95259285]
[1726694840317,0.000822,60418.0,60417.0,0.84038102]
[1726694841827,0.000822,60418.0,60417.0,0.95959285]
[1726694842041,0.000822,60418.0,60417.0,0.95259285]
[1726694842495,0.000822,60418.0,60417.0,0.96459285]
[1726694844309,0.000822,60418.0,60417.0,0.95259285]
[1726694844520,0.000822,60418.0,60417.0,0.96659285]
[1726694845609,0.000822,60418.0,60417.0,1.29762485]
[1726694847240,0.000822,60418.0,60417.0,1.46067852]
[1726694848323,0.000822,60418.0,60417.0,1.56037852]
[1726694849029,0.000822,60418.0,60417.0,1.54637852]
[1726694849240,0.000822,60418.0,60417.0,1.56037852]
[1726694861038,0.000822,60418.0,60417.0,2.02141052]
[1726694861286,0.000822,60418.0,60417.0,2.02341052]
[1726694862552,0.000822,60418.0,60417.0,2.05658052]
[1726694862773,0.000822,60418.0,60417.0,2.13801597]
[1726694863633,0.000822,60418.0,60417.0,2.16101597]
[1726694864094,0.000822,60418.0,60417.0,2.16099657]
[1726694864739,0.000822,60418.0,60417.0,2.14699657]
[1726694865179,0.000822,60418.0,60417.0,2.16099657]
[1726694865419,0.24805894,60433.0,60432.0,0.165475]
[1726694865638,0.0988,60446.0,60432.0,0.11221183]
[1726694865852,0.0988,60446.0,60442.0,0.330893]
[1726694866072,0.0988,60446.0,60444.0,0.165439]
[1726694866282,0.0988,60446.0,60437.0,0.11221183]
[1726694866283,0.02596617,60447.0,60443.0,0.01225793]
[1726694866517,0.166248,60450.0,60443.0,0.330889]
[1726694866518,0.000822,60450.0,60443.0,0.330889]
[1726694866741,0.000822,60450.0,60446.0,0.165436]
[1726694867157,0.166248,60450.0,60447.0,0.01219458]
[1726694867605,0.166248,60450.0,60446.0,0.165436]
[1726694867815,0.000822,60450.0,60448.0,0.01219458]
[1726694868026,0.000822,60450.0,60447.0,0.165433]
[1726694868301,0.000822,60450.0,60449.0,0.01219458]
[1726694868519,0.000822,60450.0,60447.0,0.165433]
[1726694868736,0.000822,60450.0,60449.0,0.01219458]
[1726694868953,0.000822,60450.0,60447.0,0.165433]
[1726694869172,0.000822,60450.0,60449.0,0.01219458]
[1726694869393,0.000822,60450.0,60447.0,0.165433]
[1726694869642,0.000822,60450.0,60449.0,0.01219458]
[1726694869858,0.000822,60450.0,60447.0,0.169433]
[1726694870075,0.000822,60450.0,60448.0,0.01219458]
[1726694871593,0.000822,60450.0,60449.0,0.004]
[1726694871594,0.166247,60450.0,60449.0,0.004]
[1726694871800,0.166247,60450.0,60448.0,0.01219458]
[1726694872010,0.166247,60450.0,60448.0,0.004]
[1726694872242,0.166247,60450.0,60449.0,0.01219458]
[1726694872451,0.000822,60450.0,60449.0,0.01219458]
[1726694873560,0.497098,60450.0,60449.0,0.01219458]
[1726694873788,0.166247,60450.0,60444.0,0.330882]
[1726694874015,0.166247,60450.0,60446.0,0.165436]
[1726694874721,0.166247,60450.0,60447.0,0.01219458]
[1726694874947,0.166247,60450.0,60446.0,0.165436]
[1726694874948,0.166247,60450.0,60449.0,0.004]
[1726694875410,0.166247,60450.0,60446.0,0.165436]
[1726694875639,0.166247,60450.0,60449.0,0.01219458]
[1726694875889,0.166247,60450.0,60446.0,0.165436]
[1726694876339,0.166247,60450.0,60449.0,0.004]
[1726694877052,0.166247,60450.0,60449.0,0.01619458]
[1726694877293,0.166247,60450.0,60449.0,0.004]
[1726694877746,0.166247,60450.0,60449.0,0.01609738]
[1726694877991,0.166247,60450.0,60446.0,0.165436]
[1726694878218,0.166247,60450.0,60449.0,0.01209738]
[1726694878452,0.166247,60450.0,60444.0,0.165442]
[1726694878453,0.166247,60450.0,60446.0,0.004]
[1726694878670,0.166247,60450.0,60444.0,0.165442]
[1726694878881,0.165429,60449.0,60444.0,0.165442]
[1726694879325,0.165429,60449.0,60445.0,0.01209738]
[1726694880401,0.165433,60448.0,60445.0,0.01209738]
[1726694882992,0.165433,60448.0,60445.0,0.01809738]
[1726694888126,0.19139216,60448.0,60445.0,0.01809738]
[1726694888912,0.19139216,60448.0,60445.0,0.01209738]
[1726694889595,0.19139216,60448.0,60445.0,0.01909738]
[1726694889824,0.19139216,60448.0,60445.0,0.01209738]
[1726694890242,0.19139216,60448.0,60445.0,0.02209738]
[1726694891280,0.165434,60447.0,60445.0,0.02209738]
[1726694891992,1.329555,60446.0,60445.0,0.02209738]
[1726694892192,0.16548,60430.0,60429.0,0.03315705]
[1726694892407,0.998902,60430.0,60429.0,0.03315705]
[1726694892634,1.52897039,60430.0,60429.0,0.03305705]
[1726694892848,1.52897039,60430.0,60403.0,0.0762]
[1726694892849,0.950457,60426.0,60425.0,0.02072637]
[1726694893068,0.950457,60426.0,60399.0,0.001646]
[1726694893069,0.827567,60418.0,60399.0,0.001646]
[1726694893310,1.34511662,60418.0,60399.0,0.001646]
[1726694893537,1.34650583,60418.0,60399.0,0.001646]
[1726694893749,1.44566037,60418.0,60401.0,0.24827244]
[1726694894018,1.30860789,60418.0,60401.0,0.24827244]
[1726694894226,1.26027023,60418.0,60401.0,0.24827244]
[1726694894864,1.30977992,60418.0,60401.0,0.24827244]
[1726694895076,1.234294,60418.0,60401.0,0.24827244]
[1726694896296,1.24430932,60418.0,60401.0,0.24827244]
[1726694896544,1.24430932,60418.0,60417.0,0.002644]
[1726694897012,1.234294,60418.0,60417.0,0.002644]
[1726694897246,1.234294,60418.0,60417.0,0.001644]
[1726694898242,1.26127049,60418.0,60417.0,0.001644]
[1726694898508,1.26227049,60418.0,60417.0,0.001644]
[1726694899249,1.27389232,60418.0,60417.0,0.001644]
[1726694899556,1.27189232,60418.0,60417.0,0.001644]
[1726694899816,1.27389232,60418.0,60417.0,0.001644]
[1726694902384,1.93999315,60418.0,60417.0,0.001644]
[1726694902878,1.79351932,60418.0,60417.0,0.001644]
[1726694903129,1.79451932,60418.0,60417.0,0.001644]
[1726694904029,1.158937,60400.0,60399.0,0.001646]
[1726694904344,1.613062,60400.0,60399.0,0.001546]
[1726694904583,1.944187,60400.0,60399.0,0.001546]
[1726694904839,1.63904588,60400.0,60399.0,0.001546]
[1726694905091,1.688362,60400.0,60399.0,0.001546]
[1726694905344,1.718362,60400.0,60399.0,0.001546]
[1726694906550,1.718362,60400.0,60399.0,0.004546]
[1726694906843,1.718362,60400.0,60399.0,0.001546]
[1726694907086,1.732362,60400.0,60399.0,0.002546]
[1726694907323,1.703139,60397.0,60396.0,0.001642]
[1726694907533,1.87398493,60397.0,60396.0,0.001642]
[1726694907744,1.87598493,60397.0,60396.0,0.001642]
[1726694909547,1.88998493,60397.0,60396.0,0.002642]
[1726694910847,2.05307051,60397.0,60396.0,0.002642]
[1726694911109,2.07905832,60397.0,60396.0,0.002642]
[1726694912526,2.06505832,60397.0,60396.0,0.001642]
[1726694913044,2.07905832,60397.0,60396.0,0.002642]
[1726694914959,2.08569732,60397.0,60396.0,0.002642]
[1726694915421,2.25375374,60397.0,60396.0,0.002642]
[1726694915638,2.22776593,60397.0,60396.0,0.002642]
[1726694916506,2.22776593,60397.0,60396.0,0.00470681]
[1726694916963,2.05692,60397.0,60396.0,0.00470681]
[1726694917418,2.22776593,60397.0,60396.0,0.00470681]
[1726694918337,2.39085151,60397.0,60396.0,0.00470681]
[1726694918799,2.41683939,60397.0,60396.0,0.00470681]
[1726694921336,2.41683939,60397.0,60396.0,8.1e-07]
[1726694923780,2.51493939,60397.0,60396.0,8.1e-07]
[1726694923993,2.45635507,60397.0,60396.0,8.1e-07]
[1726694924206,1.913369,60394.0,60393.0,0.00154281]
[1726694924422,2.036369,60394.0,60393.0,0.00154281]
[1726694927585,1.170053,60394.0,60393.0,0.00154281]
[1726694928905,1.29603924,60394.0,60393.0,0.00154281]
[1726694929363,0.62272324,60394.0,60393.0,0.00154281]
[1726694929643,0.52272324,60394.0,60393.0,0.00154281]
[1726694929854,0.85388124,60394.0,60393.0,0.00154281]
[1726694930765,0.85388124,60394.0,60366.0,0.393308]
[1726694930766,0.99387,60370.0,60364.0,0.0031897]
[1726694930988,1.5454704,60370.0,60364.0,0.0031897]
[1726694931212,1.8767604,60370.0,60364.0,0.0031897]
[1726694931429,1.90275947,60370.0,60364.0,0.0031897]
[1726694931864,2.08205947,60370.0,60364.0,0.0031897]
[1726694932296,2.08205947,60370.0,60369.0,0.001544]
[1726694932733,2.41334947,60370.0,60369.0,0.001544]
[1726694932990,0.5516194,60363.0,60339.0,0.0904]
[1726694933210,1.2142754,60363.0,60339.0,0.0904]
[1726694933454,2.25788954,60363.0,60339.0,0.0904]
[1726694933677,1.8769314,60363.0,60339.0,0.0904]
[1726694933896,1.90293481,60363.0,60339.0,0.0904]
[1726694934809,1.91693481,60363.0,60339.0,0.0904]
[1726694935036,1.8769314,60363.0,60339.0,0.0904]
[1726694935959,1.8909314,60363.0,60339.0,0.0904]
[1726694937405,1.8769314,60363.0,60362.0,0.0039012]
[1726694937623,1.8909314,60363.0,60362.0,0.0039012]
[1726694938103,1.90293448,60363.0,60362.0,0.0039012]
[1726694938338,1.8909314,60363.0,60362.0,0.0039012]
[1726694938829,1.8769314,60363.0,60362.0,0.0039012]
[1726694939277,1.8889314,60363.0,60362.0,0.0039012]
[1726694940660,1.8889314,60363.0,60362.0,0.0055452]
[1726694941136,1.91493311,60363.0,60362.0,0.0055452]
[1726694941389,1.90093311,60363.0,60362.0,0.0055452]
[1726694941915,1.47060511,60363.0,60362.0,0.0055452]
[1726694942139,1.45660511,60363.0,60362.0,0.0055452]
[1726694942368,1.46960511,60363.0,60362.0,0.0055452]
[1726694942601,1.45660511,60363.0,60362.0,0.0055452]
[1726694942849,0.52299371,60363.0,60362.0,0.0055452]
[1726694943069,0.86632171,60363.0,60362.0,0.0055452]
[1726694943293,0.85432171,60363.0,60362.0,0.0055452]
[1726694943512,0.52299371,60363.0,60362.0,0.0055452]
[1726694944629,0.53099371,60363.0,60362.0,0.0055452]
[1726694944846,0.19966571,60363.0,60362.0,0.0055452]
[1726694945155,0.165664,60363.0,60362.0,0.0055452]
[1726694945395,0.167664,60363.0,60362.0,0.0055452]
[1726694945616,0.498992,60363.0,60362.0,0.0055452]
[1726694946282,0.165664,60363.0,60362.0,0.0055452]
[1726694946503,0.001,60363.0,60362.0,0.0055452]
[1726694946722,0.001,60363.0,60362.0,0.1000452]
[1726694947186,0.02699632,60363.0,60362.0,0.1000452]
[1726694948515,0.02599632,60363.0,60362.0,0.1000452]
[1726694948751,0.02699632,60363.0,60362.0,0.1000452]
[1726694949188,0.02599632,60363.0,60362.0,0.1000452]
[1726694949411,0.02699632,60363.0,60362.0,0.3457122]
[1726694949640,0.02699632,60363.0,60362.0,1.0083802]
[1726694950328,0.24849865,60369.0,60368.0,0.593751]
[1726694950550,0.24849865,60369.0,60368.0,0.925052]
[1726694950772,0.165627,60377.0,60372.0,0.165639]
[1726694950984,0.165628,60376.0,60372.0,0.165639]
[1726694951880,0.165632,60375.0,60370.0,0.165643]
[1726694952110,0.165627,60377.0,60368.0,0.428101]
[1726694952366,0.165629,60376.0,60371.0,0.16564]
[1726694952623,0.001,60376.0,60373.0,0.165636]
[1726694952829,0.99380528,60378.0,60373.0,0.165636]
[1726694953041,1.15942928,60378.0,60373.0,0.165636]
[1726694953295,0.001,60375.0,60374.0,0.165634]
[1726694953519,0.331231,60381.0,60374.0,0.246734]
[1726694953747,0.165624,60378.0,60374.0,0.246734]
[1726694954403,0.99380528,60380.0,60374.0,0.0811]
[1726694954846,0.99380528,60380.0,60374.0,0.246732]
[1726694955093,0.001,60376.0,60374.0,0.246732]
[1726694955311,0.001,60376.0,60375.0,0.165631]
[1726694955530,0.001,60376.0,60375.0,0.496893]
[1726694955743,0.33122,60383.0,60376.0,0.165626]
[1726694955965,1.15942028,60381.0,60377.0,0.165625]
[1726694956190,0.001,60380.0,60378.0,0.0994]
[1726694957072,0.19160298,60381.0,60378.0,0.0994]
[1726694957283,0.02598798,60381.0,60380.0,0.165617]
[1726694958426,0.02598798,60381.0,60380.0,0.496852]
[1726694959049,0.24842457,60386.0,60382.0,0.165609]
[1726694959257,0.000822,60394.0,60382.0,0.00331187]
[1726694959258,0.24842457,60385.0,60382.0,0.00331187]
[1726694959506,0.57959057,60393.0,60389.0,0.165593]
[1726694959507,0.41400757,60393.0,60389.0,0.165593]
[1726694959768,0.99352553,60392.0,60389.0,0.165593]
[1726694959983,0.165583,60393.0,60387.0,0.165596]
[1726694960282,0.165585,60392.0,60387.0,0.16890763]
[1726694960516,0.165587,60391.0,60387.0,0.165596]
[1726694962244,0.165584,60393.0,60388.0,0.247895]
[1726694962494,0.165584,60393.0,60388.0,0.247894]
[1726694962783,0.000822,60394.0,60388.0,0.247894]
[1726694962784,0.165584,60392.0,60388.0,0.247894]
[1726694963035,0.000822,60394.0,60389.0,0.331181]
[1726694963278,0.000822,60394.0,60388.0,0.08561165]
[1726694963279,0.000822,60394.0,60393.0,0.165582]
[1726694963518,0.001,60393.0,60392.0,0.165584]
[1726694964519,0.000823,60392.0,60390.0,0.165587]
[1726694964985,0.000823,60392.0,60390.0,0.16889846]
[1726694965247,0.000823,60392.0,60390.0,0.165587]
[1726694965482,0.000823,60392.0,60391.0,0.165587]
[1726694966697,0.000823,60392.0,60391.0,0.173587]
[1726694966698,0.001823,60392.0,60391.0,0.173587]
[1726694967154,0.000823,60392.0,60391.0,0.165587]
[1726694968629,0.001823,60392.0,60391.0,0.173587]
[1726694969118,0.001823,60392.0,60391.0,0.933037]
[1726694969344,0.000823,60392.0,60391.0,0.925037]
[1726694969826,0.001823,60392.0,60391.0,0.933037]
[1726694970057,0.000823,60392.0,60391.0,0.925037]
[1726694970589,0.001823,60392.0,60391.0,0.933037]
[1726694972466,0.000823,60392.0,60391.0,0.925037]
[1726694972669,0.001823,60392.0,60391.0,0.933037]
[1726694972944,0.001823,60392.0,60391.0,1.41926567]
[1726694972945,0.000823,60392.0,60391.0,1.41926567]
[1726694973399,0.001823,60392.0,60391.0,1.42726567]
[1726694973661,0.001823,60392.0,60391.0,1.41926567]
[1726694973662,0.000823,60392.0,60391.0,1.41926567]
[1726694975370,0.001823,60392.0,60391.0,1.42626567]
[1726694975888,0.000823,60392.0,60391.0,1.41926567]
[1726694976406,0.001823,60392.0,60391.0,1.42626567]
[1726694979820,0.001823,60392.0,60391.0,1.09509067]
[1726694986778,0.07484385,60437.0,60435.0,0.03]
[1726694987026,0.000823,60437.0,60436.0,0.70065597]
[1726694987244,0.000823,60437.0,60436.0,1.0282754]
[1726694987699,0.000823,60437.0,60436.0,1.56499254]
[1726694988133,0.000823,60437.0,60436.0,1.3923734]
[1726694988350,0.000822,60458.0,60440.0,0.860435]
[1726694988569,0.000822,60458.0,60440.0,1.191341]
[1726694989730,0.9935173,60454.0,60440.0,1.35439467]
[1726694989972,0.24900096,60453.0,60440.0,1.35439467]
[1726694990202,0.24900096,60453.0,60440.0,1.02348867]
[1726694990427,0.24900096,60453.0,60440.0,1.03748867]
[1726694992856,0.24900096,60453.0,60440.0,1.02348867]
[1726694993698,0.24900096,60453.0,60440.0,1.03748867]
[1726694993908,0.24900096,60453.0,60440.0,1.36839467]
[1726694994360,0.24900096,60453.0,60440.0,1.53935007]
[1726694996857,0.24900096,60453.0,60443.0,0.860395]
[1726694997071,0.24900096,60453.0,60443.0,1.02344867]
[1726694997286,0.24900096,60453.0,60443.0,1.35433867]
[1726694999541,0.24817796,60460.0,60443.0,1.35433867]
[1726694999542,0.24817796,60473.0,60472.0,0.03]
[1726694999754,0.000822,60479.0,60478.0,0.629237]
[1726694999977,0.000722,60479.0,60478.0,1.4615884]
[1726695000860,0.000722,60479.0,60478.0,1.62464207]
[1726695001102,0.000722,60479.0,60478.0,1.95534007]
[1726695001319,0.000722,60479.0,60478.0,2.00504571]
[1726695001539,0.000823,60498.0,60478.0,2.00504571]
[1726695001540,0.000823,60498.0,60490.0,0.495949]
[1726695001760,0.0052776,60491.0,60490.0,0.826582]
[1726695002504,0.0052776,60491.0,60490.0,0.495949]
[1726695002729,0.0052776,60491.0,60490.0,0.330633]
[1726695002968,0.0052776,60491.0,60490.0,0.495949]
[1726695003678,0.428673,60501.0,60489.0,0.330638]
[1726695003895,0.428673,60501.0,60494.0,0.165305]
[1726695003896,0.0981,60501.0,60494.0,0.165305]
[1726695004115,0.165291,60500.0,60494.0,0.165305]
[1726695005234,0.0981,60501.0,60495.0,0.165302]
[1726695005468,0.263386,60501.0,60495.0,0.165302]
[1726695006143,0.16529,60500.0,60495.0,0.165302]
[1726695006415,0.165292,60499.0,60492.0,0.330619]
[1726695006631,0.16529,60500.0,60494.0,1.15708052]
[1726695006843,0.16529,60500.0,60495.0,0.165302]
[1726695008149,0.02593791,60499.0,60495.0,0.165302]
[1726695008813,0.00093791,60499.0,60495.0,0.165302]
[1726695009009,0.00093791,60499.0,60495.0,0.169302]
[1726695009232,0.16529,60500.0,60495.0,0.169302]
[1726695009932,0.165292,60499.0,60495.0,0.169302]
[1726695010175,0.165293,60499.0,60495.0,0.004]
[1726695010390,0.165293,60499.0,60494.0,0.165305]
[1726695010612,0.165293,60499.0,60495.0,0.165302]
[1726695010854,0.165293,60499.0,60495.0,0.008]
[1726695011062,0.165293,60499.0,60495.0,0.165302]
[1726695011510,0.165293,60499.0,60495.0,0.173302]
[1726695011730,0.165293,60499.0,60492.0,0.330619]
[1726695011949,0.165293,60499.0,60495.0,0.008]
[1726695012388,0.165294,60498.0,60495.0,0.008]
[1726695013553,0.165294,60498.0,60494.0,0.165303]
[1726695014043,0.000821,60499.0,60495.0,0.009]
[1726695014248,0.166113,60499.0,60495.0,0.009]
[1726695014706,0.165297,60497.0,60493.0,0.99177652]
[1726695015176,0.165297,60497.0,60494.0,0.009]
[1726695015635,0.165297,60497.0,60493.0,1.15708352]
[1726695015853,0.02675934,60499.0,60494.0,0.165304]
[1726695016070,0.165295,60498.0,60494.0,0.165304]
[1726695016932,0.165295,60498.0,60495.0,0.008]
[1726695017399,0.165297,60497.0,60493.0,0.165306]
[1726695017618,0.165297,60497.0,60494.0,0.009]
[1726695018074,0.165297,60497.0,60493.0,0.165306]
[1726695018295,0.165297,60497.0,60495.0,0.009]
[1726695018522,0.165297,60497.0,60493.0,0.165306]
[1726695018748,0.165297,60497.0,60493.0,0.165307]
[1726695019020,0.826512,60495.0,60494.0,0.01]
[1726695019222,0.924212,60495.0,60494.0,0.01]
[1726695019484,1.254817,60495.0,60494.0,0.01]
[1726695019703,1.354817,60495.0,60494.0,0.01]
[1726695019933,1.761522,60495.0,60494.0,0.01]
[1726695020405,0.826662,60484.0,60483.0,0.24795438]
[1726695020858,0.826662,60484.0,60463.0,0.165388]
[1726695020859,0.826717,60480.0,60463.0,0.165388]
[1726695021079,1.157404,60480.0,60462.0,0.24795438]
[1726695021306,1.157404,60480.0,60463.0,0.165388]
[1726695021542,1.157404,60480.0,60462.0,0.24795438]
[1726695021764,1.257404,60480.0,60462.0,0.24795438]
[1726695022071,1.257404,60480.0,60469.0,0.24795438]
[1726695022568,1.28335308,60480.0,60469.0,0.24795438]
[1726695022818,1.61404008,60480.0,60469.0,0.24795438]
[1726695023035,1.28335308,60480.0,60469.0,0.24795438]
[1726695023987,1.28535308,60480.0,60469.0,0.24795438]
[1726695025140,1.259404,60480.0,60469.0,0.24795438]
[1726695026539,1.590091,60480.0,60469.0,0.24795438]
[1726695027295,1.259404,60480.0,60469.0,0.24795438]
[1726695027788,1.590091,60480.0,60469.0,0.24795438]
[1726695028274,1.6160414,60480.0,60469.0,0.24795438]
[1726695028762,1.2853544,60480.0,60469.0,0.24795438]
[1726695029479,1.259404,60480.0,60469.0,0.24795438]
[1726695029951,1.590091,60480.0,60469.0,0.24795438]
[1726695030176,1.257404,60480.0,60469.0,0.24795438]
[1726695030403,1.259404,60480.0,60469.0,0.24795438]
[1726695030828,1.251465,60480.0,60469.0,0.24795438]
[1726695031309,1.249465,60480.0,60469.0,0.24795438]
[1726695032451,1.27741537,60480.0,60469.0,0.24795438]
[1726695033136,1.27541537,60480.0,60469.0,0.24795438]
[1726695033585,1.27741537,60480.0,60469.0,0.24795438]
[1726695034274,1.30741537,60480.0,60469.0,0.24795438]
[1726695035250,1.63810237,60480.0,60469.0,0.24795438]
[1726695035481,1.33041537,60480.0,60469.0,0.24795438]
[1726695035952,1.66110237,60480.0,60469.0,0.24795438]
[1726695036201,1.66192337,60480.0,60469.0,0.24795438]
[1726695036427,1.79045275,60480.0,60469.0,0.24795438]
[1726695036869,1.85045275,60480.0,60469.0,0.24795438]
[1726695037601,1.72192337,60480.0,60469.0,0.24795438]
[1726695038276,1.72492337,60480.0,60479.0,0.002642]
[1726695038496,1.72192337,60480.0,60479.0,0.001642]
[1726695038920,1.72492337,60480.0,60479.0,0.002642]
[1726695042633,1.39423637,60480.0,60479.0,0.002642]
[1726695044725,1.55732195,60480.0,60479.0,0.002642]
[1726695045608,1.88800895,60480.0,60479.0,0.002642]
[1726695046258,1.86205858,60480.0,60479.0,0.002642]
[1726695046897,1.698973,60480.0,60479.0,0.002642]
[1726695048278,0.169164,60480.0,60479.0,0.002642]
[1726695048521,0.003821,60480.0,60479.0,0.002642]
[1726695048743,0.169164,60480.0,60479.0,0.002642]
[1726695049205,0.003821,60480.0,60479.0,0.002642]
[1726695049439,0.169164,60480.0,60479.0,0.002642]
[1726695049868,0.003821,60480.0,60479.0,0.002642]
[1726695050306,0.000821,60480.0,60479.0,0.001642]
[1726695052356,0.000821,60480.0,60479.0,0.003642]
[1726695052586,0.827538,60480.0,60479.0,0.001642]
[1726695052996,0.827538,60480.0,60479.0,0.003642]
[1726695053219,0.827538,60480.0,60479.0,0.001642]
[1726695053687,0.829538,60480.0,60479.0,0.001642]
[1726695054566,1.160225,60480.0,60479.0,0.001642]
[1726695054789,1.20957102,60480.0,60479.0,0.001642]
[1726695055008,1.30757102,60480.0,60479.0,0.001642]
[1726695055476,1.30957102,60480.0,60479.0,0.001642]
[1726695055694,1.30757102,60480.0,60479.0,0.001642]
[1726695055907,1.30957102,60480.0,60479.0,0.001642]
[1726695056162,1.36257102,60480.0,60479.0,0.001642]
[1726695056376,1.36057102,60480.0,60479.0,0.001642]
[1726695056600,1.43762571,60480.0,60479.0,0.002642]
[1726695056833,1.36057102,60480.0,60479.0,0.001642]
[1726695057527,1.75125802,60480.0,60479.0,0.001642]
[1726695057754,1.84996932,60480.0,60479.0,0.001642]
[1726695057967,1.75125802,60480.0,60479.0,0.001642]
[1726695058184,1.75325802,60480.0,60479.0,0.001642]
[1726695058401,1.90559807,60480.0,60479.0,0.002642]
[1726695058620,1.87964715,60480.0,60479.0,0.002642]
[1726695058841,1.87981316,60480.0,60479.0,0.002642]
[1726695059327,1.87681316,60480.0,60479.0,0.001642]
[1726695059549,1.75325802,60480.0,60479.0,0.001642]
[1726695061135,1.75625802,60480.0,60479.0,0.002642]
[1726695061350,1.78220943,60480.0,60479.0,0.002642]
[1726695062452,2.00505927,60480.0,60479.0,0.002642]
[1726695062698,2.15361312,60480.0,60479.0,0.002642]
[1726695063163,0.826855,60470.0,60469.0,0.24795438]
[1726695063401,0.87637383,60470.0,60469.0,0.24795438]
[1726695063623,0.826855,60470.0,60469.0,0.24795438]
[1726695063811,0.16514681,60463.0,60461.0,0.0831]
[1726695064316,0.07433681,60469.0,60461.0,0.0831]
[1726695064317,0.04955787,60469.0,60461.0,0.0831]
[1726695064545,0.02595353,60470.0,60466.0,0.165382]
[1726695064546,0.04955787,60468.0,60466.0,0.165382]
[1726695064770,0.02595353,60470.0,60461.0,0.0831]
[1726695064989,0.04955787,60471.0,60466.0,0.16538]
[1726695065244,0.04955787,60471.0,60467.0,0.165377]
[1726695065462,0.04955787,60471.0,60466.0,0.330763]
[1726695065463,0.04955787,60469.0,60466.0,0.165381]
[1726695066800,0.04955787,60469.0,60467.0,0.165379]
[1726695067909,0.04955787,60468.0,60467.0,0.165379]
[1726695068132,0.04955787,60468.0,60467.0,0.174379]
[1726695068361,0.04955787,60468.0,60467.0,0.009]
[1726695068565,0.04963311,60476.0,60475.0,0.165357]
[1726695068783,0.04963311,60477.0,60476.0,0.165354]
[1726695069004,0.04963311,60478.0,60477.0,0.165352]
[1726695069227,0.04963311,60479.0,60478.0,0.165349]
[1726695069443,0.04963311,60479.0,60477.0,0.330702]
[1726695069444,0.05045411,60480.0,60479.0,0.165346]
[1726695070547,0.05045411,60480.0,60479.0,0.991932]
[1726695070790,0.000821,60480.0,60479.0,0.991932]
[1726695071011,0.000821,60480.0,60479.0,1.322625]
[1726695071454,0.001821,60480.0,60479.0,1.322625]
[1726695071904,0.000821,60480.0,60479.0,1.322625]
[1726695073510,0.000821,60480.0,60479.0,1.327625]
[1726695073735,0.000821,60480.0,60479.0,1.322625]
[1726695073964,0.000821,60480.0,60479.0,1.336625]
[1726695085750,0.000821,60480.0,60479.0,1.83037167]
[1726695089876,0.000821,60480.0,60479.0,1.94216122]
[1726695096420,0.000821,60480.0,60479.0,1.96286682]
[1726695096635,0.000821,60480.0,60479.0,1.94216122]
[1726695097281,0.000821,60480.0,60479.0,1.96286708]
[1726695097689,0.00057781,60480.0,60479.0,1.94216122]
[1726695098529,0.00057781,60480.0,60479.0,1.96286772]
[1726695099375,0.00057781,60480.0,60479.0,1.98221975]
[1726695105304,0.00057781,60480.0,60479.0,1.94216122]
[1726695105517,0.00057781,60480.0,60479.0,1.96149782]
[1726695105740,0.00057781,60480.0,60479.0,1.98220433]
[1726695108804,0.00057781,60480.0,60479.0,1.96150175]
[1726695109015,0.00057781,60480.0,60479.0,1.94216122]
[1726695109234,0.00057781,60480.0,60479.0,1.98221025]
[1726695112236,0.00057781,60480.0,60479.0,1.96286782]
[1726695112444,0.00057781,60480.0,60479.0,1.98221151]
[1726695112658,0.00057781,60480.0,60479.0,1.87042196]
[1726695112857,0.00057781,60480.0,60479.0,1.98221151]
[1726695115602,0.00057781,60480.0,60479.0,1.96286782]
[1726695115851,0.00057781,60480.0,60479.0,1.98218005]
[1726695117637,0.00033462,60480.0,60479.0,1.98218005]
[1726695119205,0.00033462,60480.0,60479.0,1.94416122]
[1726695119415,0.00033462,60480.0,60479.0,1.9634437]